Cogmind - Beta 13 @@@ ROGUE MODE // 2024.06.24 @ 08:07:29 Player: puppuppit Result: Smashed by cave-in Performance ------------- Evolutions (0) 0 Regions Visited (3) 600 Robots Destroyed (28) 140 Value Destroyed (499) 499 Prototype IDs (1) 20 Alien Tech Used (0) 0 Bonus (131) 131 TOTAL SCORE: 1390 Bonus ------- Follower Combat Kills 131 Cogmind --------- Core Integrity 0/250 Matter 221/300 Energy 99/100 System Corruption 8% Temperature Cool (0) Movement Core (100) Ox1 Location -10/Exiles Parts ------- > --- POWER (1) -------- (None) > --- PROPULSION (2) --- (None) > --- UTILITY (2) ------ Thief Drone Bay (3/3) > --- WEAPON (2) ------- (None) > --- INVENTORY (5) ---- Light Fission Core Hover Unit High-capacity Matter Pod (200) Light Assault Rifle Signal Generator Peak State ------------ > --- POWER ------------ Light Ion Engine > --- PROPULSION ------- Wheel Wheel > --- UTILITY ---------- Small Storage Unit Thief Drone Bay > --- WEAPON ----------- Light Assault Rifle Minigun > --- INVENTORY -------- Light Fission Core Hover Unit Hover Unit High-capacity Matter Pod Improved Power Shielding Hacking Suite Rocket Launcher Signal Generator [Rating: 17] Favorites ----------- Power Light Ion Engine Engine Light Ion Engine Propulsion Wheel Wheel Wheel Utility Small Storage Unit Device Thief Drone Bay Storage Small Storage Unit Protection Weapon Shielding Weapon EM Pulse Gun Energy Gun EM Pulse Gun Ballistic Gun Light Assault Rifle Launcher Rocket Launcher Build | -11 -10 -10 -10 ------- Run | Yrd Mat Min Exi Slots Evolved . | . . . . Power . | . . . . Propulsion . | . . . . Utility . | . . . . Weapon . | . . . . Parts Attached 36 | 13 6 16 1 Power 6 | 3 2 1 . Engine 6 | 3 2 1 . Core . | . . . . Reactor . | . . . . Propulsion 15 | 6 1 8 . Treads . | . . . . Leg . | . . . . Wheel 15 | 6 1 8 . Hover . | . . . . Flight . | . . . . Utility 5 | 1 2 2 . Device 1 | . . 1 . Storage 2 | 1 1 . . Processor . | . . . . Hackware . | . . . . Protection 2 | . 1 1 . Artifact . | . . . . Weapon 10 | 3 1 5 1 Energy Gun 4 | 2 1 1 . Energy Cannon . | . . . . Ballistic Gun 4 | 1 . 3 . Ballistic Cannon . | . . . . Launcher 2 | . . 1 1 Special Weapon . | . . . . Impact Weapon . | . . . . Slashing Weapon . | . . . . Piercing Weapon . | . . . . Special Melee Weapon . | . . . . Unidentified Prototypes 1 | . . 1 . Parts Lost 8 | . . 3 5 Power . | . . . . Propulsion 3 | . . 1 2 Utility 2 | . . 1 1 Weapon 3 | . . 1 2 Highest Loss Streak 5 | . . 3 5 To Critical Strikes . | . . . . Average Slot Usage (%) 94 | . 97 99 83 Engine 11 | . 14 14 5 Wheel 27 | . 28 28 25 Device 6 | . . 5 14 Storage 13 | . 14 14 12 Protection 6 | . 11 7 . Energy Gun 7 | . 14 9 . Ballistic Gun 17 | . 14 18 18 Launcher 2 | . . . 6 Naked Turns . | . . . . Heaviest Build 16 | 14 13 16 16 Greatest Support 26 | 26 20 26 20 Greatest Overweight (x) 1 | . . 1 1 Average Overweight (x) . | . . . . Largest Inventory Capacity 8 | 8 8 8 8 Average Capacity 7 | 7 8 8 7 Most Carried 8 | 8 8 8 8 Average Carried 7 | 2 7 7 7 Final Capacity 8 | 8 8 8 5 Final Carried 8 | 8 8 8 5 Class Distribution -------------------- 100% | Mutant Dominant Class ---------------- Mutant | -10/Materials Mutant | -10/Mines Mutant | -10/Exiles Resources | -11 -10 -10 -10 ----------- Run | Yrd Mat Min Exi Matter Collected 1028 | 392 144 492 . Remotely . | . . . . Salvage Created 933 | 217 275 441 . Parts 55 | 19 18 18 . Haulers Intercepted . | . . . . Recyclers Shooed 1 | . . 1 . Parts Field Recycled . | . . . . Retrieved Matter . | . . . . Parts Self-Destructed . | . . . . Prevented . | . . . . Kills | -11 -10 -10 -10 ------- Run | Yrd Mat Min Exi Combat Hostiles Destroyed 11 | . 5 6 . Guns 7 | . 4 3 . AOE 4 | . 1 3 . Classes Destroyed 8 | 3 3 2 . Worker 4 | 2 . 2 . Tunneler 6 | 5 . 1 . Recycler 3 | 1 . 2 . Mechanic 1 | . . 1 . Operator 2 | . 2 . . Watcher 1 | . 1 . . Swarmer 3 | . . 3 . Grunt 8 | . 5 3 . Best Kill Streak 5 | 5 3 3 . Combat Bots Only 3 | . 2 3 . Max Kills in Single Turn 2 | 1 2 2 . Gunslinging . | . . . . Exploded 2 | . 1 2 . Melee . | . . . . Uniques/NPCs Destroyed . | . . . . Combat | -11 -10 -10 -10 -------- Run | Yrd Mat Min Exi Hostile Shots Fired 54 | . 16 38 . Missed 14 | . 7 7 . Damage Taken 1295 | 22 125 417 731 Core 274 | 11 53 54 156 Absorbed by Shields . | . . . . Redirected to Shielding 52 | . 5 47 . Core Remaining (%) 95 | 95 . . . Volleys Fired 87 | 16 33 30 8 Largest 2 | 2 2 2 1 Hottest 60 | 60 60 60 33 Shots Fired 166 | 32 66 60 8 Gun 156 | 32 66 58 . Cannon . | . . . . Launcher 10 | . . 2 8 Special . | . . . . Kinetic 92 | 16 33 43 . Thermal . | . . . . Explosive 10 | . . 2 8 Electromagnetic 64 | 16 33 15 . Robot Hit Streak 17 | 5 6 17 . Robot Miss Streak 8 | 4 8 3 . Penetration Max . | . . . . Secondary Targets . | . . . . Shots Hit Robots 92 | 16 30 46 . Core Hits 39 | 7 15 17 . Critical Kills . | . . . . Critical Parts Destroyed . | . . . . Critical Strikes 2 | 1 . 1 . Corrupt 2 | 1 . 1 . Melee Attacks . | . . . . Impact . | . . . . Slashing . | . . . . Piercing . | . . . . Sneak Attacks . | . . . . Combat Hostiles . | . . . . Follow-up Attacks . | . . . . Damage Inflicted 1493 | 241 483 769 . Guns 1169 | 197 411 561 . Cannons . | . . . . Explosions 324 | 44 72 208 . Melee . | . . . . Ramming . | . . . . Kinetic 659 | 64 197 398 . Thermal 116 | 44 72 . . Explosive 208 | . . 208 . Electromagnetic 510 | 133 214 163 . Impact . | . . . . Slashing . | . . . . Piercing . | . . . . Highest Corruption 8 | . . . 8 Average Corruption 7 | . . . 7 Corruption Purged . | . . . . Corruption Blocked . | . . . . Effects 2 | . . . 2 Matter Fused 1 | . . . 1 Heat Flow Errors 1 | . . . 1 Overload Shots . | . . . . Overflow Damage 90 | 14 . 40 36 Projectiles . | . . . . Explosions 90 | 14 . 40 36 Melee . | . . . . Knockbacks . | . . . . Impact . | . . . . Kinetic . | . . . . Secondary . | . . . . Self-Inflicted Damage 288 | 23 . . 265 Shots 6 | 1 . . 5 Rammed . | . . . . Targets Rammed . | . . . . Kicked . | . . . . Crushed . | . . . . Highest Temperature 136 | 12 45 60 136 Average Temperature 22 | 12 18 21 73 Received Heat Transfer 270 | . 69 201 . Siege Activations . | . . . . Robots Corrupted . | . . . . Combat Hostiles . | . . . . Parts Fried 1 | . 1 . . Impact Corruptions . | . . . . Robots Melted . | . . . . Combat Hostiles . | . . . . Parts Melted . | . . . . Heat Transferred 100 | 50 50 . . Parts Sabotaged . | . . . . Parts Stolen . | . . . . Parts Stripped . | . . . . Power Chain Reactions 2 | 1 1 . . Alert | -11 -10 -10 -10 ------- Run | Yrd Mat Min Exi Peak Influence 491 | 40 217 491 . Initial 84 | . 26 84 . Average 219 | 16 102 309 . Maximum Alert Level 2 | . 1 2 . Low Security (%) 43 | 100 93 11 . Level 1 44 | . 6 69 . Level 2 11 | . . 18 . Level 3 . | . . . . Level 4 . | . . . . Level 5 . | . . . . High Security . | . . . . Max Security . | . . . . Squads Dispatched 3 | . 2 1 . Investigation . | . . . . Extermination . | . . . . Reinforcement 2 | . 2 . . Assault 1 | . . 1 . Garrison . | . . . . Intercept . | . . . . Searches Triggered . | . . . . Construction Impeded . | . . . . Haulers Reinforced . | . . . . Active Scanning Responses . | . . . . Cargo Convoy Interrupts . | . . . . Stealth | -11 -10 -10 -10 --------- Run | Yrd Mat Min Exi Distress Signals 2 | . 2 . . Communications Jammed . | . . . . Distress Signals . | . . . . Times Spotted 30 | . 12 18 . Peak Tracking Total 5 | . 4 5 . Tactical Retreats 2 | . . 2 . Traps | -11 -10 -10 -10 ------- Run | Yrd Mat Min Exi Traps Triggered 1 | . 1 . . Indirectly . | . . . . Trap Hack Attempts . | . . . . Triggered . | . . . . Disarmed . | . . . . Reprogrammed . | . . . . Reused . | . . . . Traps Extracted . | . . . . Installed . | . . . . Triggered . | . . . . Machines | -11 -10 -10 -10 ---------- Run | Yrd Mat Min Exi Machines Disabled 5 | . . 2 3 Max in Single Turn 2 | . . 1 2 Machines Repaired . | . . . . Machines Dismantled . | . . . . Machines Sabotaged . | . . . . Overloaded Fab Kills . | . . . . Hacking | -11 -10 -10 -10 --------- Run | Yrd Mat Min Exi Machines Accessed 8 | . 2 3 3 Terminals 3 | . 2 1 . Fabricators . | . . . . Repair Stations . | . . . . Recycling Units . | . . . . Scanalyzers . | . . . . Garrison Access . | . . . . Total Hacks 14 | . 7 4 3 Successful 9 | . 3 3 3 Failed 5 | . 4 1 . Catastrophic . | . . . . Database Lockouts . | . . . . Manual 9 | . 7 2 . Terminals 9 | . 7 2 . Fabricators . | . . . . Repair Stations . | . . . . Recycling Units . | . . . . Scanalyzers . | . . . . Garrison Access . | . . . . Terminal Hacks 9 | . 3 3 3 Record 3 | . . . 3 Robot Analysis 4 | . 3 1 . Open Door 2 | . . 2 . Fabricator Hacks . | . . . . Repair Station Hacks . | . . . . Recycling Unit Hacks . | . . . . Scanalyzer . | . . . . Garrison Access Hacks . | . . . . Unauthorized Hacks . | . . . . Terminals . | . . . . Fabricators . | . . . . Repair Stations . | . . . . Recycling Units . | . . . . Scanalyzers . | . . . . Garrison Access . | . . . . Data Cores Recovered . | . . . . Used . | . . . . Hacking Detections 3 | . 2 1 . Full Trace Events 2 | . 2 . . Feedback Events . | . . . . Feedback Blocked . | . . . . Robot Schematics Acquired . | . . . . Robots Built . | . . . . Authchips . | . . . . Time . | . . . . Total Robot Build Rating . | . . . . Part Schematics Acquired . | . . . . Parts Built . | . . . . Authchips . | . . . . Time . | . . . . Total Part Build Rating . | . . . . Parts Repaired . | . . . . Time . | . . . . Parts Recycled . | . . . . Recycled Matter . | . . . . Retrieved Matter . | . . . . Retrieved Components . | . . . . Parts Scanalyzed . | . . . . Part Schematics Acquired . | . . . . Parts Damaged . | . . . . Bothacking | -11 -10 -10 -10 ------------ Run | Yrd Mat Min Exi Used RIF Installer . | . . . . Robots Hacked . | . . . . Non-combat . | . . . . Combat . | . . . . Robot Hacks Applied . | . . . . Relay Couplers Released . | . . . . Fabnet Peak Effective % . | . . . . Robots Rewired . | . . . . Allies Hacked . | . . . . Hacks Repelled . | . . . . Allies | -11 -10 -10 -10 -------- Run | Yrd Mat Min Exi Total Allies 1 | . . 1 . Largest Group 1 | . . 1 1 Highest-Rated Group 31 | . . 31 31 Highest-Rated Ally 31 | . . 31 31 Total Orders . | . . . . Ally Attacks 23 | . . 23 . Total Damage 380 | . . 380 . Kills 7 | . . 7 . Allies Corrupted . | . . . . Allies Melted . | . . . . Intel | -11 -10 -10 -10 ------- Run | Yrd Mat Min Exi Robot Analysis Total 4 | . 3 1 . Derelict Logs Recovered 1 | . . 1 . Drone Launches . | . . . . Drone Recoveries . | . . . . Exploration | -11 -10 -10 -10 ------------- Run | Yrd Mat Min Exi Turns Passed 1538 | 131 295 683 429 Spaces Moved 1475 | 68 214 693 500 Core 32 | 2 . . 30 Treads . | . . . . Legs . | . . . . Wheels 1443 | 66 214 693 470 Hover . | . . . . Flight . | . . . . Fastest Speed 50 | 50 80 80 80 Average Speed 80 | 84 80 80 81 Slowest Speed 100 | 90 80 95 100 Overloaded Moves . | . . . . Propulsion Burnouts . | . . . . Robots Hopped . | . . . . Cave-ins Triggered 5 | . . . 5 Exploration Rate (%) 55 | 5 37 98 82 Regions Visited 3 Branch Regions 2 Pre-discovered Areas . | . . . . Known Exits Taken . | . . . . Unknown Exits Taken 3 | 1 1 1 . Scrap Searched 1 | . . 1 . Spaces Dug . | . . . . Terrain Destroyed 129 | 4 7 16 102 Melee . | . . . . Projectile . | . . . . AOE 129 | 4 7 16 102 Terrain Rammed . | . . . . Walls Destroyed . | . . . . Machines Disabled . | . . . . Actions | -11 -10 -10 -10 --------- Run | Yrd Mat Min Exi Total 1662 | 104 278 767 513 Wait 22 | . 9 11 2 Move 1467 | 67 213 692 495 Hop . | . . . . Pick Up 18 | 5 7 5 1 Fast Attach 14 | 7 3 4 . Attach 2 | . . 2 . Detach 1 | 1 . . . Swap 20 | 6 3 10 1 Drop 27 | 2 10 13 2 Fire 87 | 16 33 30 8 Melee . | . . . . Ram . | . . . . Kick . | . . . . Crush . | . . . . Escape Stasis 4 | . . . 4 Rewire . | . . . . Trap . | . . . . Miscellaneous . | . . . . Route ------- -11/Scrapyard -10/Materials -10/Mines (discovered 3 exits: [*Mat x2] / *Exi) -10/Exiles History --------- Turn | Location | Event 19 | -11/Scrapyard | Discovered new exit (range 16) 132 | -11/Scrapyard | Entered Materials 309 | -10/Materials | Build established: Mutant 421 | -10/Materials | Discovered new exit (range 9) 427 | -10/Materials | Entered Mines 445 | -10/Mines | Learned 4 Materials zone layouts 480 | -10/Mines | Received a Rocket Launcher from a helpful Derelict 515 | -10/Mines | Met a Derelict bent on vengeance 554 | -10/Mines | Lost 3 parts (1n1u1w) 623 | -10/Mines | Met a Derelict testing a Signal Generator 631 | -10/Mines | Found Signal Generator 744 | -10/Mines | Discovered new exit (range 11) 756 | -10/Mines | Deemed a non-threat by the Exiles lab entrance 757 | -10/Mines | Discovered new exit (range 5) 853 | -10/Mines | Found the Drone Emporium 857 | -10/Mines | Found Prototype Device 857 | -10/Mines | Identified Thief Drone Bay 911 | -10/Mines | Met a Derelict who couldn't figure out how to use a Trap Extractor 951 | -10/Mines | Discovered new exit (range 6) 1110 | -10/Mines | Entered Exiles 1110 | -10/Exiles | Found Exiles lab abandoned 1110 | -10/Exiles | Accompanied by 1 ally 1473 | -10/Exiles | Core integrity fell below 50% 1494 | -10/Exiles | Crushed by falling debris 1499 | -10/Exiles | Crushed by falling debris 1510 | -10/Exiles | Crushed by falling debris 1510 | -10/Exiles | Crushed by falling debris 1511 | -10/Exiles | Core integrity fell below 20% 1539 | -10/Exiles | Crushed by falling debris 1539 | -10/Exiles | Smashed by cave-in Last Messages --------------- 01480_ Destroyed Wheel. 01481_ The unstable cave ceiling collapses. 01494_ Crushed by falling debris. 01494_ Rocket Launcher destroyed. 01494_ System corrupted by crushing effect (+2). 01494_ Sml. Storage Unit destroyed. 01494_ System corrupted by crushing effect (+4). 01494_ Hacking Suite crushed. 01499_ System corrupted: Matter fused (-6). 01499_ The unstable cave ceiling collapses. 01499_ Crushed by falling debris. 01510_ The unstable cave ceiling collapses. 01510_ Crushed by falling debris. 01510_ Wheel destroyed. 01510_ System corrupted by crushing effect (+2). 01510_ The unstable cave ceiling collapses. 01510_ Crushed by falling debris. 01526_ System corrupted: Heat flow error (+161). 01530_ The unstable cave ceiling collapses. 01539_ Crushed by falling debris. Map ----- +----------------------------------------------------+ | ????????????????????????????????????#########????? | | ????????????????????????????????????# #????? | | ????????????????????????????????????# #????? | | ????????????????????????????????????# #????? | | ????????????????????????????????????# X#????? | | ????????????????????????????????????## #?????? | | ????????????????????????????????????#X #?????? | | ????????????????????????????????????## #?????? | | ?????????????????????????????????????# #?????? | | ?????????????????????????????????????# ####### | | ?????????????????????????????????????# ##""""" | | ?????????????????????????????????????# ## "" | | ?????????????????????????????????????# X" | | ?????????????????????????????????????# ## "" | | ?????????????????????????????######### ##""""" | | ????????????????????????????##""""""## ####### | | ????????????????????????????# " "" ## #?????? | | ?????????????????????????#### X #?????? | | ???????????????????????### #?????? | | ???????????????????????# ## #?????? | | ???????????????????????# "## #?##### | | ???????????????????????#= ### #?#"""" | | ???????????????????????##! ##?# #?#"""" | | ???????????????????????# # #??# #?#"""" | | ??????????????????????##g # #?## ###"" " | | ??????????????????????# #@# #?#" " | | ??????????????????????## ;" "##?#" | | ???????????????????????# # #??#" | | ???????????????????????##### ####??#" | | ?????????????????????### ## ##?????#" | | ?????????????????????# #??????#" | | ?????????????????????# ##??????## | | ?????????????????????#" #???????# * | | ?????????????????????# #???????#" "X" | | ?????????????????????# #???????#" """ | | ?????????????????????# #???????#" """""" | | ?????????????????????#"" #???????##" ####### | | ?????????????????????### ###??????##"" #?????? | | ??????????????##?????### ###?######"" #?????? | | ????????? """#####X# #"###""""""" ##????? | | ????????? """""" " "" ##???# | | ????????? "" """ " ##### | | ????????? " " | | ??????????# | | ??????????### | | ????????????## | | ?????????????## | | ??????????????##" | | ???????????????#""" """""" | | ??????????????##" ######""" | +----------------------------------------------------+ Best States ------------- Heat Dissipation 25 Energy Generation 10 Energy Capacity 250 Matter Stores 300 Matter Capacity 300 Sight Range 16 Terrain Scan Density 10 Weapon Shielding 33 Evasion (%) 44 Item Schematics ----------------- None Robot Schematics ------------------ None Fabricated ------------ Nothing Alien Tech Used ----------------- None Achievements -------------- None Challenges ------------ None Game ------ Seed ContainmentPoweredModule Manual? 0 Play Time 00:14:58 Cumulative 429.0 hours Start 2024.06.24 @ 07:54:47 End 2024.06.24 @ 08:07:29 Sessions 1 Manual Loads 0 Difficulty Rogue Special Mode None Game No. 156 Rogue 156 Adventurer 0 Explorer 0 Win Type - Total 3 Types 0/0/2/1/0/0/0/0/0 Lore% 71 Gallery% 79 Achievement% 64 Wizard Run 0 Options --------- Layout 0 ASCII 0 Keyboard 1 Movement Arrows Keybinds 0 Fullscreen 1 Font 12/Proggy Map View 83x54 Zoom Use 0% Tactical HUD 1 Map Filters NONE Filters NONE Steam 0 RUN: e9ba6c5f-9552-435c-b18e-2bdc186b7003